fUST/lending_fUST_20240912
["ID","MTS","AMOUNT","RATE_DAILY","PERIOD"]
[337800753,1726125057760,-500.0,0.00016986,2]
[337800754,1726125057771,-500.0,0.00016986,2]
[337800755,1726125057782,-500.0,0.00016986,2]
[337800756,1726125057952,-500.0,0.00016986,2]
[337800757,1726125057969,-27357.0454616,0.0001725,2]
[337800758,1726125057977,-500.0,0.0001726,2]
[337800759,1726125057987,-500.0,0.0001726,2]
[337800760,1726125057997,-500.0,0.0001726,2]
[337800761,1726125058007,-500.0,0.0001726,2]
[337800762,1726125058016,-500.0,0.0001726,2]
[337800763,1726125058026,-500.0,0.0001726,2]
[337800764,1726125058035,-500.0,0.0001726,2]
[337800765,1726125058046,-500.0,0.0001726,2]
[337800766,1726125058055,-500.0,0.0001726,2]
[337800767,1726125058064,-500.0,0.0001726,2]
[337800768,1726125058075,-498.65112495,0.0001726,2]
[337800769,1726125058084,-500.0,0.0001726,2]
[337800770,1726125058094,-631.84,0.0001726,2]
[337800771,1726125058104,-500.0,0.0001726,2]
[337800772,1726125058114,-582.35,0.0001726,2]
[337800773,1726125058123,-500.0,0.0001726,2]
[337800774,1726125058133,-487.52560483,0.0001726,2]
[337800775,1726125058143,-1043.21,0.0001726,2]
[337800776,1726125058152,-833.03,0.0001726,2]
[337800777,1726125058162,-500.0,0.0001726,2]
[337800778,1726125058171,-504.8,0.0001726,2]
[337800779,1726125058181,-500.0,0.0001726,2]
[337800780,1726125058190,-852.96,0.0001726,2]
[337800781,1726125058200,-500.0,0.0001726,2]
[337800782,1726125058211,-500.0,0.0001726,2]
[337800783,1726125058223,-500.0,0.0001726,2]
[337800784,1726125058234,-500.0,0.0001726,2]
[337800785,1726125058253,-500.0,0.0001726,2]
[337800786,1726125058263,-500.0,0.0001726,2]
[337800787,1726125058272,-500.0,0.0001726,2]
[337800788,1726125058283,-500.0,0.0001726,2]
[337800789,1726125058294,-470.00633216,0.0001726,2]
[337800790,1726125058305,-500.0,0.0001726,2]
[337800791,1726125058315,-500.0,0.0001726,2]
[337800792,1726125058325,-500.0,0.0001726,2]
[337800793,1726125058335,-500.0,0.0001726,2]
[337800794,1726125058346,-500.0,0.0001726,2]
[337800795,1726125058357,-500.0,0.0001726,2]
[337800796,1726125058367,-500.0,0.0001726,2]
[337800797,1726125058377,-618.84,0.0001726,2]
[337800798,1726125058386,-500.0,0.0001726,2]
[337800799,1726125058396,-607.6,0.0001726,2]
[337800800,1726125058406,-500.0,0.0001726,2]
[337800801,1726125058415,-262.84408514,0.0001726,2]
[337800802,1726125058424,-500.0,0.0001726,2]
[337800803,1726125058433,-500.0,0.0001726,2]
[337800804,1726125058443,-500.0,0.0001726,2]
[337800805,1726125058453,-500.0,0.0001726,2]
[337800806,1726125058462,-500.0,0.0001726,2]
[337800807,1726125058471,-613.82,0.0001726,2]
[337800808,1726125058480,-500.0,0.0001726,2]
[337800809,1726125058494,-598.71,0.0001726,2]
[337800810,1726125058504,-505.9,0.0001726,2]
[337800811,1726125058513,-587.94,0.0001726,2]
[337800812,1726125058522,-500.0,0.0001726,2]
[337800813,1726125058531,-500.0,0.0001726,2]
[337800814,1726125058541,-500.0,0.0001726,2]
[337800815,1726125058550,-500.0,0.0001726,2]
[337800816,1726125058560,-692.16,0.0001726,2]
[337800817,1726125058570,-500.0,0.0001726,2]
[337800818,1726125058579,-500.0,0.0001726,2]
[337800819,1726125058589,-748.9,0.0001726,2]
[337800820,1726125058599,-602.18,0.0001726,2]
[337800821,1726125058611,-500.0,0.0001726,2]
[337800822,1726125058621,-620.48,0.0001726,2]
[337800823,1726125058630,-500.0,0.0001726,2]
[337800824,1726125058641,-690.04,0.0001726,2]
[337800825,1726125058652,-500.0,0.0001726,2]
[337800826,1726125058662,-580.25,0.0001726,2]
[337800827,1726125058671,-500.0,0.0001726,2]
[337800828,1726125058682,-500.0,0.0001726,2]
[337800829,1726125058692,-656.82,0.0001726,2]
[337800830,1726125058703,-500.0,0.0001726,2]
[337800831,1726125058714,-500.0,0.0001726,2]
[337800832,1726125058725,-500.0,0.0001726,2]
[337800833,1726125058738,-620.58,0.0001726,2]
[337800834,1726125058749,-500.0,0.0001726,2]
[337800835,1726125058760,-216.69527669,0.0001726,2]
[337800836,1726125058769,-567.80502344,0.0001726,2]
[337800837,1726125058778,-500.0,0.0001726,2]
[337800838,1726125058788,-500.0,0.0001726,2]
[337800839,1726125058797,-500.0,0.0001726,2]
[337800840,1726125058808,-500.0,0.0001726,2]
[337800841,1726125058818,-500.0,0.0001726,2]
[337800842,1726125058828,-500.0,0.0001726,2]
[337800843,1726125058838,-500.0,0.0001726,2]
[337800844,1726125058848,-500.0,0.0001726,2]
[337800845,1726125058858,-500.0,0.0001726,2]
[337800846,1726125058868,-500.0,0.0001726,2]
[337800847,1726125058878,-1475.61,0.0001726,2]
[337800848,1726125058888,-570.37,0.0001726,2]
[337800849,1726125058898,-500.0,0.0001726,2]
[337800850,1726125058908,-500.0,0.0001726,2]
[337800851,1726125058918,-500.0,0.0001726,2]
[337800852,1726125058928,-252.64202145,0.0001726,2]
[337800853,1726125058937,-464.7,0.0001726,2]
[337800854,1726125058947,-551.35,0.0001726,2]
[337800855,1726125058957,-588.39,0.0001726,2]
[337800856,1726125058967,-500.0,0.0001726,2]
[337800857,1726125058978,-500.0,0.0001726,2]
[337800858,1726125058989,-500.0,0.0001726,2]
[337800859,1726125058999,-515.21,0.0001726,2]
[337800860,1726125059009,-500.0,0.0001726,2]
[337800861,1726125059020,-500.0,0.0001726,2]
[337800862,1726125059030,-500.0,0.0001726,2]
[337800863,1726125059039,-500.0,0.0001726,2]
[337800864,1726125059049,-615.41,0.0001726,2]
[337800865,1726125059059,-500.0,0.0001726,2]
[337800866,1726125059070,-500.0,0.0001726,2]
[337800867,1726125059083,-619.74,0.0001726,2]
[337800868,1726125059094,-1495.56,0.0001726,2]
[337800869,1726125059105,-912.23,0.0001726,2]
[337800870,1726125059117,-500.0,0.0001726,2]
[337800871,1726125059128,-500.0,0.0001726,2]
[337800872,1726125059140,-500.0,0.0001726,2]
[337800873,1726125059152,-500.0,0.0001726,2]
[337800874,1726125059164,-1323.12,0.0001726,2]
[337800875,1726125059174,-622.05,0.0001726,2]
[337800876,1726125059184,-500.0,0.0001726,2]
[337800877,1726125059196,-500.0,0.0001726,2]
[337800878,1726125059207,-6617.43,0.0001726,2]
[337800879,1726125059218,-500.0,0.0001726,2]
[337800880,1726125059228,-500.0,0.0001726,2]
[337800881,1726125059239,-500.0,0.0001726,2]
[337800882,1726125059250,-500.0,0.0001726,2]
[337800883,1726125059261,-500.0,0.0001726,2]
[337800884,1726125059271,-500.0,0.0001726,2]
[337800885,1726125059282,-500.0,0.0001726,2]
[337800886,1726125059292,-500.0,0.0001726,2]
[337800887,1726125059304,-510.09,0.0001726,2]
[337800888,1726125059316,-908.28,0.0001726,2]
[337800889,1726125059328,-500.0,0.0001726,2]
[337800890,1726125059339,-617.92,0.0001726,2]
[337800891,1726125059349,-550.0,0.0001726,2]
[337800892,1726125059361,-500.0,0.0001726,2]
[337800893,1726125059370,-500.0,0.0001726,2]
[337800894,1726125059380,-500.0,0.0001726,2]
[337800895,1726125059390,-500.0,0.0001726,2]
[337800896,1726125059399,-500.0,0.0001726,2]
[337800897,1726125059408,-716.66,0.0001726,2]
[337800898,1726125059418,-500.0,0.0001726,2]
[337800899,1726125059428,-500.0,0.0001726,2]
[337800900,1726125059438,-500.0,0.0001726,2]
[337800901,1726125059447,-500.0,0.0001726,2]
[337800902,1726125059457,-500.0,0.0001726,2]
[337800903,1726125059467,-1040.85,0.0001726,2]
[337800904,1726125059477,-250.75,0.0001726,2]
[337800905,1726125059488,-575.54,0.0001726,2]
[337800906,1726125059498,-585.94011378,0.0001726,2]
[337800907,1726125059508,-500.0,0.0001726,2]
[337800908,1726125059517,-500.0,0.0001726,2]
[337800909,1726125059528,-500.0,0.0001726,2]
[337800910,1726125059538,-500.0,0.0001726,2]
[337800911,1726125059548,-7638.2,0.0001726,2]
[337800912,1726125059557,-500.0,0.0001726,2]
[337800913,1726125059568,-250.75585617,0.0001726,2]
[337800914,1726125059577,-6438.54,0.0001726,2]
[337800915,1726125059587,-500.0,0.0001726,2]
[337800916,1726125059597,-728.28,0.0001726,2]
[337800917,1726125059610,-500.0,0.0001726,2]
[337800918,1726125059622,-805.69,0.0001726,2]
[337800919,1726125059631,-951.06,0.0001726,2]
[337800920,1726125059641,-1337.49,0.0001726,2]
[337800921,1726125059651,-6829.49,0.0001726,2]
[337800922,1726125059662,-586.91,0.0001726,2]
[337800923,1726125059672,-500.0,0.0001726,2]
[337800924,1726125059681,-539.1,0.0001726,2]
[337800925,1726125059693,-917.76,0.0001726,2]
[337800926,1726125059703,-500.0,0.0001726,2]
[337800927,1726125059713,-500.0,0.0001726,2]
[337800928,1726125059723,-500.0,0.0001726,2]
[337800929,1726125059732,-1211.83,0.0001726,2]
[337800930,1726125059743,-515.33,0.0001726,2]
[337800931,1726125059753,-859.49,0.0001726,2]
[337800932,1726125059762,-834.69,0.0001726,2]
[337800933,1726125059772,-500.0,0.0001726,2]
[337800934,1726125059782,-729.48,0.0001726,2]
[337800935,1726125059792,-500.0,0.0001726,2]
[337800936,1726125059801,-605.37,0.0001726,2]
[337800937,1726125059812,-1064.49,0.0001726,2]
[337800938,1726125059822,-500.0,0.0001726,2]
[337800939,1726125059832,-638.51418397,0.0001726,2]
[337800940,1726125059842,-4198.42,0.0001726,2]
[337800941,1726125059851,-2045.53,0.0001726,2]
[337800942,1726125059862,-500.0,0.0001726,2]
[337800943,1726125059873,-743.67,0.0001726,2]
[337800944,1726125059883,-1332.3,0.0001726,2]
[337800945,1726125059893,-1124.01,0.0001726,2]
[337800946,1726125059903,-800.52,0.0001726,2]
[337800947,1726125059914,-2485.92,0.0001726,2]
[337800948,1726125059924,-500.0,0.0001726,2]
[337800949,1726125059934,-500.0,0.0001726,2]
[337800950,1726125059944,-500.0,0.0001726,2]
[337800951,1726125059955,-708.19,0.0001726,2]
[337800952,1726125059964,-500.0,0.0001726,2]
[337800953,1726125059974,-500.0,0.0001726,2]
[337800954,1726125059984,-500.0,0.0001726,2]
[337800955,1726125060001,-500.0,0.00017534,2]
[337800956,1726125060014,-500.0,0.00017534,2]
[337800957,1726125060025,-500.0,0.00017534,2]
[337800958,1726125060036,-177.25,0.00017534,2]
[337800959,1726125060045,-500.0,0.00017534,2]
[337800960,1726125060055,-500.0,0.00017534,2]
[337800961,1726125060065,-614.10587117,0.00017534,2]
[337800962,1726125060075,-500.0,0.00017534,2]
[337800963,1726125060086,-500.0,0.00017534,2]
[337800964,1726125060096,-500.0,0.00017534,2]
[337800965,1726125060106,-538.17816729,0.00017534,2]
[337800966,1726125060116,-631.84,0.00017534,2]
[337800967,1726125060126,-395.28435573,0.00017534,2]
[337800968,1726125060135,-500.0,0.00017534,2]
[337800969,1726125060145,-1043.21,0.00017534,2]
[337800970,1726125060155,-833.03,0.00017534,2]
[337800971,1726125060165,-500.0,0.00017534,2]
[337800972,1726125060175,-504.8,0.00017534,2]
[337800973,1726125060184,-500.0,0.00017534,2]
[337800974,1726125060194,-852.96,0.00017534,2]
[337800975,1726125060204,-500.0,0.00017534,2]
[337800976,1726125060213,-500.0,0.00017534,2]
[337800977,1726125060222,-500.0,0.00017534,2]
[337800978,1726125060232,-500.0,0.00017534,2]
[337800979,1726125060246,-500.0,0.00017534,2]
[337800980,1726125060256,-500.0,0.00017534,2]
[337800981,1726125060266,-500.0,0.00017534,2]
[337800982,1726125060275,-500.0,0.00017534,2]
[337800983,1726125060285,-500.0,0.00017534,2]
[337800984,1726125060295,-500.0,0.00017534,2]
[337800985,1726125060305,-500.0,0.00017534,2]
[337800986,1726125060314,-500.0,0.00017534,2]
[337800987,1726125060324,-500.0,0.00017534,2]
[337800988,1726125060334,-500.0,0.00017534,2]
[337800989,1726125060344,-500.0,0.00017534,2]
[337800990,1726125060353,-500.0,0.00017534,2]
[337800991,1726125060363,-500.0,0.00017534,2]
[337800992,1726125060372,-500.0,0.00017534,2]
[337800993,1726125060382,-500.0,0.00017534,2]
[337800994,1726125060391,-500.0,0.00017534,2]
[337800995,1726125060401,-613.82,0.00017534,2]
[337800996,1726125060411,-500.0,0.00017534,2]
[337800997,1726125060420,-598.71,0.00017534,2]
[337800998,1726125060430,-505.9,0.00017534,2]
[337800999,1726125060440,-587.94,0.00017534,2]
[337801000,1726125060450,-500.0,0.00017534,2]
[337801001,1726125060460,-500.0,0.00017534,2]
[337801002,1726125060469,-500.0,0.00017534,2]
[337801003,1726125060479,-500.0,0.00017534,2]
[337801004,1726125060528,-692.16,0.00017534,2]
[337801005,1726125060537,-500.0,0.00017534,2]
[337801006,1726125060547,-500.0,0.00017534,2]
[337801007,1726125060557,-748.9,0.00017534,2]
[337801008,1726125060566,-602.18,0.00017534,2]
[337801009,1726125060576,-500.0,0.00017534,2]
[337801010,1726125060586,-620.48,0.00017534,2]
[337801011,1726125060595,-690.04,0.00017534,2]
[337801012,1726125060605,-500.0,0.00017534,2]
[337801013,1726125060618,-500.0,0.00017534,2]
[337801014,1726125060627,-500.0,0.00017534,2]
[337801015,1726125060636,-656.82,0.00017534,2]
[337801016,1726125060646,-500.0,0.00017534,2]
[337801017,1726125060655,-500.0,0.00017534,2]
[337801018,1726125060664,-500.0,0.00017534,2]
[337801019,1726125060673,-620.58,0.00017534,2]
[337801020,1726125060683,-218.02453242,0.00017534,2]
[337801021,1726125060693,-500.0,0.00017534,2]
[337801022,1726125060702,-500.0,0.00017534,2]
[337801023,1726125060711,-500.0,0.00017534,2]
[337801024,1726125060720,-500.0,0.00017534,2]
[337801025,1726125060729,-500.0,0.00017534,2]
[337801026,1726125060739,-500.0,0.00017534,2]
[337801027,1726125060749,-191.1,0.00017534,2]
[337801028,1726125060758,-500.0,0.00017534,2]
[337801029,1726125060768,-500.0,0.00017534,2]
[337801030,1726125060777,-1475.61,0.00017534,2]
[337801031,1726125060786,-500.0,0.00017534,2]
[337801032,1726125060795,-500.0,0.00017534,2]
[337801033,1726125060804,-500.0,0.00017534,2]
[337801034,1726125060814,-551.35,0.00017534,2]
[337801035,1726125060823,-588.39,0.00017534,2]
[337801036,1726125060833,-500.0,0.00017534,2]
[337801037,1726125060842,-500.0,0.00017534,2]
[337801038,1726125060851,-500.0,0.00017534,2]
[337801039,1726125060860,-515.21,0.00017534,2]
[337801040,1726125060869,-500.0,0.00017534,2]
[337801041,1726125060878,-500.0,0.00017534,2]
[337801042,1726125060887,-500.0,0.00017534,2]
[337801043,1726125060897,-500.0,0.00017534,2]
[337801044,1726125060906,-615.41,0.00017534,2]
[337801045,1726125060916,-500.0,0.00017534,2]
[337801046,1726125060926,-500.0,0.00017534,2]
[337801047,1726125060935,-619.74,0.00017534,2]
[337801048,1726125060945,-1495.56,0.00017534,2]
[337801049,1726125060955,-912.23,0.00017534,2]
[337801050,1726125060964,-500.0,0.00017534,2]
[337801051,1726125060974,-500.0,0.00017534,2]
[337801052,1726125060984,-500.0,0.00017534,2]
[337801053,1726125060997,-500.0,0.00017534,2]
[337801054,1726125061006,-1323.12,0.00017534,2]
[337801055,1726125061015,-622.05,0.00017534,2]
[337801056,1726125061024,-500.0,0.00017534,2]
[337801057,1726125061034,-500.0,0.00017534,2]
[337801058,1726125061043,-6617.43,0.00017534,2]
[337801059,1726125061053,-500.0,0.00017534,2]
[337801060,1726125061063,-500.0,0.00017534,2]
[337801061,1726125061072,-500.0,0.00017534,2]
[337801062,1726125061081,-500.0,0.00017534,2]
[337801063,1726125061090,-500.0,0.00017534,2]
[337801064,1726125061099,-500.0,0.00017534,2]
[337801065,1726125061109,-500.0,0.00017534,2]
[337801066,1726125061118,-510.09,0.00017534,2]
[337801067,1726125061127,-908.28,0.00017534,2]
[337801068,1726125061136,-500.0,0.00017534,2]
[337801069,1726125061145,-617.92,0.00017534,2]
[337801070,1726125061154,-550.0,0.00017534,2]
[337801071,1726125061164,-500.0,0.00017534,2]
[337801072,1726125061173,-371.06340942,0.00017534,2]
[337801073,1726125061182,-500.0,0.00017534,2]
[337801074,1726125061191,-500.0,0.00017534,2]
[337801075,1726125061200,-716.66,0.00017534,2]
[337801076,1726125061209,-500.0,0.00017534,2]
[337801077,1726125061218,-500.0,0.00017534,2]
[337801078,1726125061227,-500.0,0.00017534,2]
[337801079,1726125061236,-500.0,0.00017534,2]
[337801080,1726125061245,-1040.85,0.00017534,2]
[337801081,1726125061255,-575.54,0.00017534,2]
[337801082,1726125061264,-500.0,0.00017534,2]
[337801083,1726125061273,-500.0,0.00017534,2]
[337801084,1726125061282,-500.0,0.00017534,2]
[337801085,1726125061291,-7638.2,0.00017534,2]
[337801086,1726125061300,-390.94,0.00017534,2]
[337801087,1726125061309,-6438.54,0.00017534,2]
[337801088,1726125061318,-500.0,0.00017534,2]
[337801089,1726125061327,-728.28,0.00017534,2]
[337801090,1726125061336,-500.0,0.00017534,2]
[337801091,1726125061345,-805.69,0.00017534,2]
[337801092,1726125061354,-951.06,0.00017534,2]
[337801093,1726125061364,-1337.49,0.00017534,2]
[337801094,1726125061374,-6829.49,0.00017534,2]
[337801095,1726125061383,-586.91,0.00017534,2]
[337801096,1726125061392,-500.0,0.00017534,2]
[337801097,1726125061401,-539.1,0.00017534,2]
[337801098,1726125061410,-917.76,0.00017534,2]
[337801099,1726125061419,-500.0,0.00017534,2]
[337801100,1726125061428,-500.0,0.00017534,2]
[337801101,1726125061437,-535.49,0.00017534,2]
[337801102,1726125061447,-1211.83,0.00017534,2]
[337801103,1726125061456,-515.33,0.00017534,2]
[337801104,1726125061466,-859.49,0.00017534,2]
[337801105,1726125061475,-834.69,0.00017534,2]
[337801106,1726125061484,-500.0,0.00017534,2]
[337801107,1726125061494,-729.48,0.00017534,2]
[337801108,1726125061503,-605.37,0.00017534,2]
[337801109,1726125061512,-1064.49,0.00017534,2]
[337801110,1726125061521,-500.0,0.00017534,2]
[337801111,1726125061530,-4198.42,0.00017534,2]
[337801112,1726125061539,-2045.53,0.00017534,2]
[337801113,1726125061548,-500.0,0.00017534,2]
[337801114,1726125061557,-743.67,0.00017534,2]
[337801115,1726125061567,-1332.3,0.00017534,2]
[337801116,1726125061576,-1124.01,0.00017534,2]
[337801117,1726125061585,-800.52,0.00017534,2]
[337801118,1726125061593,-2485.92,0.00017534,2]
[337801119,1726125061603,-314.42064648,0.00017534,2]
[337801120,1726125061617,-500.0,0.00017534,2]
[337801121,1726125061626,-565.4806194,0.00017534,2]
[337801122,1726125061635,-708.19,0.00017534,2]
[337801123,1726125061643,-500.0,0.00017534,2]
[337801124,1726125061653,-500.0,0.00017534,2]
[337801125,1726125061662,-500.0,0.00017534,2]
[337801126,1726125061671,-159.99029222,0.00017573,2]
[337801127,1726125061681,-500.0,0.00017573,2]
[337801128,1726125061692,-500.0,0.00017573,2]
[337801129,1726125061701,-500.0,0.00017573,2]
[337801130,1726125061710,-500.0,0.00017573,2]
[337801131,1726125061720,-500.0,0.00017573,2]
[337801132,1726125061729,-253.782582,0.000178,2]
[337801133,1726125061739,-500.0,0.000178,2]
[337801134,1726125061748,-500.0,0.00017808,2]
[337801135,1726125061757,-500.0,0.00017808,2]
[337801136,1726125061767,-500.0,0.00017808,2]
[337801137,1726125061776,-500.0,0.00017808,2]
[337801138,1726125061785,-500.0,0.00017808,2]
[337801139,1726125061794,-500.0,0.00017808,2]
[337801140,1726125061803,-500.0,0.00017808,2]
[337801141,1726125061813,-500.0,0.00017808,2]
[337801142,1726125061822,-631.84,0.00017808,2]
[337801143,1726125061831,-554.64912227,0.00017808,2]
[337801144,1726125061841,-1043.21,0.00017808,2]
[337801145,1726125061850,-833.03,0.00017808,2]
[337801146,1726125061859,-500.0,0.00017808,2]
[337801147,1726125061868,-504.8,0.00017808,2]
[337801148,1726125061878,-500.0,0.00017808,2]
[337801149,1726125061887,-852.96,0.00017808,2]
[337801150,1726125061896,-500.0,0.00017808,2]
[337801151,1726125061905,-500.0,0.00017808,2]
[337801152,1726125061915,-500.0,0.00017808,2]
[337801153,1726125061924,-500.0,0.00017808,2]
[337801154,1726125061934,-500.0,0.00017808,2]
[337801155,1726125061943,-500.0,0.00017808,2]
[337801156,1726125061952,-500.0,0.00017808,2]
[337801157,1726125061962,-500.0,0.00017808,2]
[337801158,1726125061971,-500.0,0.00017808,2]
[337801159,1726125061980,-216.48,0.00017808,2]
[337801160,1726125061989,-609.02,0.00017808,2]
[337801161,1726125061998,-500.0,0.00017808,2]
[337801162,1726125062008,-500.0,0.00017808,2]
[337801163,1726125062017,-500.0,0.00017808,2]
[337801164,1726125062026,-500.0,0.00017808,2]
[337801165,1726125062035,-500.0,0.00017808,2]
[337801166,1726125062044,-500.0,0.00017808,2]
[337801167,1726125062053,-500.0,0.00017808,2]
[337801168,1726125062062,-500.0,0.00017808,2]
[337801169,1726125062071,-500.0,0.00017808,2]
[337801170,1726125062081,-613.82,0.00017808,2]
[337801171,1726125062090,-203.14,0.00017808,2]
[337801172,1726125062099,-598.71,0.00017808,2]
[337801173,1726125062108,-505.9,0.00017808,2]
[337801174,1726125062118,-587.94,0.00017808,2]
[337801175,1726125062129,-500.0,0.00017808,2]
[337801176,1726125062139,-500.0,0.00017808,2]
[337801177,1726125062150,-500.0,0.00017808,2]
[337801178,1726125062160,-500.0,0.00017808,2]
[337801179,1726125062170,-692.16,0.00017808,2]
[337801180,1726125062179,-500.0,0.00017808,2]
[337801181,1726125062189,-500.0,0.00017808,2]
[337801182,1726125062199,-748.9,0.00017808,2]
[337801183,1726125062208,-602.18,0.00017808,2]
[337801184,1726125062219,-500.0,0.00017808,2]
[337801185,1726125062232,-620.48,0.00017808,2]
[337801186,1726125062242,-690.04,0.00017808,2]
[337801187,1726125062251,-500.0,0.00017808,2]
[337801188,1726125062261,-500.0,0.00017808,2]
[337801189,1726125062272,-500.0,0.00017808,2]
[337801190,1726125062282,-656.82,0.00017808,2]
[337801191,1726125062291,-500.0,0.00017808,2]
[337801192,1726125062300,-500.0,0.00017808,2]
[337801193,1726125062309,-516.53962202,0.00017808,2]
[337801194,1726125062319,-620.58,0.00017808,2]
[337801195,1726125062327,-500.0,0.00017808,2]
[337801196,1726125062336,-500.0,0.00017808,2]
[337801197,1726125062346,-500.0,0.00017808,2]
[337801198,1726125062356,-509.99,0.00017808,2]
[337801199,1726125062365,-500.0,0.00017808,2]
[337801200,1726125062374,-500.0,0.00017808,2]
[337801201,1726125062384,-230.71664588,0.00017808,2]
[337801202,1726125062393,-500.0,0.00017808,2]
[337801203,1726125062402,-1475.61,0.00017808,2]
[337801204,1726125062412,-500.0,0.00017808,2]
[337801205,1726125062422,-500.0,0.00017808,2]
[337801206,1726125062434,-500.0,0.00017808,2]
[337801207,1726125062445,-551.35,0.00017808,2]
[337801208,1726125062454,-588.39,0.00017808,2]
[337801209,1726125062464,-500.0,0.00017808,2]
[337801210,1726125062474,-500.0,0.00017808,2]
[337801211,1726125062484,-515.21,0.00017808,2]
[337801212,1726125062498,-500.0,0.00017808,2]
[337801213,1726125062508,-500.0,0.00017808,2]
[337801214,1726125062518,-500.0,0.00017808,2]
[337801215,1726125062528,-500.0,0.00017808,2]
[337801216,1726125062544,-615.41,0.00017808,2]
[337801217,1726125062553,-500.0,0.00017808,2]
[337801218,1726125062563,-500.0,0.00017808,2]
[337801219,1726125062571,-619.74,0.00017808,2]
[337801220,1726125062581,-1495.56,0.00017808,2]
[337801221,1726125062590,-912.23,0.00017808,2]
[337801222,1726125062601,-500.0,0.00017808,2]
[337801223,1726125062613,-500.0,0.00017808,2]
[337801224,1726125062624,-500.0,0.00017808,2]
[337801225,1726125062634,-500.0,0.00017808,2]
[337801226,1726125062644,-1323.12,0.00017808,2]
[337801227,1726125062654,-622.05,0.00017808,2]
[337801228,1726125062664,-500.0,0.00017808,2]
[337801229,1726125062674,-500.0,0.00017808,2]
[337801230,1726125062686,-6617.43,0.00017808,2]
[337801231,1726125062696,-500.0,0.00017808,2]
[337801232,1726125062705,-500.0,0.00017808,2]
[337801233,1726125062715,-352.74,0.00017808,2]
[337801234,1726125062725,-500.0,0.00017808,2]
[337801235,1726125062734,-500.0,0.00017808,2]
[337801236,1726125062745,-500.0,0.00017808,2]
[337801237,1726125062755,-510.09,0.00017808,2]
[337801238,1726125062764,-908.28,0.00017808,2]
[337801239,1726125062774,-500.0,0.00017808,2]
[337801240,1726125062784,-617.92,0.00017808,2]
[337801241,1726125062794,-550.0,0.00017808,2]
[337801242,1726125062804,-500.0,0.00017808,2]
[337801243,1726125062814,-500.0,0.00017808,2]
[337801244,1726125062824,-500.0,0.00017808,2]
[337801245,1726125062834,-716.66,0.00017808,2]
[337801246,1726125062845,-500.0,0.00017808,2]
[337801247,1726125062855,-500.0,0.00017808,2]
[337801248,1726125062865,-500.0,0.00017808,2]
[337801249,1726125062874,-500.0,0.00017808,2]
[337801250,1726125062884,-1040.85,0.00017808,2]
[337801251,1726125062894,-575.54,0.00017808,2]
[337801252,1726125062904,-500.0,0.00017808,2]